bitfinex/quotes_ETHUSD_20260216
["timestamp","ask_amount","ask_price","bid_price","bid_amount"]
[1771201177329,0.48171363,1976.3,1975.8,5.54e-06]
[1771201178224,1.74670654,1976.3,1975.8,5.54e-06]
[1771201178435,0.48171363,1976.2,1975.8,5.54e-06]
[1771201179023,0.48171363,1976.0,1975.8,5.54e-06]
[1771201179650,0.48171363,1976.0,1975.9,0.0002]
[1771201179950,0.48171363,1975.9,1975.6,0.001]
[1771201180547,2.29871363,1975.8,1975.6,0.001]
[1771201181347,0.48171363,1975.7,1975.6,0.001]
[1771201181848,0.48171363,1976.0,1975.6,0.001]
[1771201182055,0.911,1975.7,1975.6,0.001]
[1771201182250,1.819,1975.7,1975.6,0.001]
[1771201183451,1.819,1975.7,1975.6,3.43e-06]
[1771201184425,1.819,1975.7,1975.2,0.001]
[1771201184730,1.819,1975.7,1975.2,0.45421099]
[1771201186136,1.819,1975.7,1975.2,0.001]
[1771201186536,2.27746,1975.7,1975.2,0.001]
[1771201187226,0.45846,1975.6,1975.2,2.79e-06]
[1771201187630,3.08439366,1975.7,1974.3,0.0025444]
[1771201187631,0.45846,1975.3,1974.3,0.0025444]
[1771201187938,3.18679366,1975.7,1974.2,0.46224478]
[1771201187939,0.908,1975.2,1974.2,0.46224478]
[1771201188152,0.45846,1975.5,1974.2,0.46224478]
[1771201188348,1.82,1975.1,1974.4,0.46224478]
[1771201188549,1.72402562,1975.5,1974.4,0.46224478]
[1771201188550,1.26556562,1975.5,1974.4,0.46224478]
[1771201188754,0.45846,1975.3,1974.5,0.0025444]
[1771201189843,0.45846,1975.3,1974.5,0.0012722]
[1771201190464,1.82,1975.2,1974.5,0.0012722]
[1771201191762,0.45846,1974.9,1974.0,0.00153886]
[1771201192127,0.45846,1974.9,1974.6,0.001]
[1771201192328,0.45846,1974.9,1974.0,0.00153886]
[1771201192528,0.45846,1974.9,1974.3,0.001]
[1771201192974,1.72435229,1974.9,1974.3,0.001]
[1771201193133,0.45846,1974.9,1974.3,0.001]
[1771201193539,1.72437005,1974.9,1974.3,0.001]
[1771201193768,0.45846,1974.9,1974.3,0.001]
[1771201194575,0.912,1974.9,1974.3,0.46324478]
[1771201194778,0.909,1974.8,1974.3,0.001]
[1771201196178,0.45846,1974.7,1974.0,0.00153886]
[1771201196383,1.2660792,1974.6,1974.0,0.00153886]
[1771201196547,1.7245392,1974.6,1974.0,0.00153886]
[1771201196749,0.45846,1974.5,1974.0,0.00153886]
[1771201197159,0.45846,1974.3,1973.3,0.46224478]
[1771201197372,0.45846,1974.1,1973.0,0.46378364]
[1771201197582,0.1024,1974.0,1973.0,0.46378364]
[1771201198885,0.1024,1974.1,1973.0,0.46378364]
[1771201199753,0.56086,1974.1,1973.0,0.46378364]
[1771201200284,0.56086,1974.1,1973.0,0.00153886]
[1771201200486,0.56086,1974.1,1973.0,0.46378364]
[1771201200487,1.822,1974.0,1973.0,0.46378364]
[1771201200659,1.36880187,1974.1,1973.0,0.46378364]
[1771201200851,1.822,1974.0,1973.0,0.46378364]
[1771201202782,0.1024,1974.1,1973.0,0.46378364]
[1771201203089,1.822,1974.0,1973.0,0.46378364]
[1771201203656,2.28046,1974.0,1973.0,0.46378364]
[1771201203877,0.45846,1973.9,1973.0,0.46378364]
[1771201204081,0.45846,1973.9,1973.1,0.001]
[1771201204990,0.45846,1973.8,1973.1,0.001]
[1771201205191,0.1024,1974.1,1973.1,0.46324478]
[1771201205192,1.82726135,1974.1,1973.1,0.46324478]
[1771201205386,0.1024,1973.9,1973.1,0.46324478]
[1771201206190,0.45846,1974.4,1973.1,0.46324478]
[1771201206356,1.822,1974.3,1973.1,0.46324478]
[1771201208622,0.56086,1974.5,1973.1,0.46324478]
[1771201208908,0.1024,1974.3,1973.1,0.46324478]
[1771201209637,5.06406717,1974.7,1973.1,0.46324478]
[1771201209638,4.577122,1974.9,1973.3,0.46224478]
[1771201209845,0.912,1974.5,1973.3,0.46224478]
[1771201213212,1.819,1974.4,1973.6,0.46224478]
[1771201217946,1.819,1974.4,1973.3,0.45247078]
[1771201217947,0.0011,1974.3,1973.3,0.45247078]
[1771201220657,0.49974851,1974.3,1973.3,0.45247078]
[1771201220945,0.0011,1974.3,1973.3,0.45247078]
[1771201222055,1.818,1974.2,1973.3,0.45247078]
[1771201228944,0.904,1974.1,1973.3,0.45247078]
[1771201230063,0.904,1974.1,1973.5,0.45247078]
[1771201239250,0.904,1974.1,1973.4,0.001]
[1771201239455,1.40264851,1974.1,1973.4,0.001]
[1771201241061,0.49864851,1974.0,1973.4,0.001]
[1771201243561,0.49864851,1974.0,1973.5,0.001]
[1771201243785,0.49974851,1974.0,1973.5,0.001]
[1771201248069,0.46511825,1973.9,1973.3,0.001]
[1771201248258,0.46511825,1973.7,1973.3,0.001]
[1771201248592,0.46511825,1973.5,1973.1,0.001]
[1771201248759,2.27711825,1973.4,1973.1,0.001]
[1771201248961,0.46511825,1973.3,1973.1,0.001]
[1771201249383,0.46511825,1973.3,1973.0,6.363e-05]
[1771201249794,0.46511825,1973.3,1971.7,1.26788878]
[1771201249795,0.46511825,1973.1,1972.1,0.46606939]
[1771201250096,0.46511825,1973.6,1972.1,0.46606939]
[1771201250405,9.63773928,1974.0,1972.7,0.46606939]
[1771201250406,0.57015711,1974.0,1972.7,0.46606939]
[1771201250613,0.901,1973.6,1972.7,0.46606939]
[1771201251110,1.36611825,1973.6,1972.7,0.46606939]
[1771201251266,0.46511825,1973.5,1972.7,0.46606939]
[1771201252407,0.46511825,1973.5,1972.4,0.46606939]
[1771201255764,0.46511825,1973.5,1972.1,0.954]
[1771201255765,0.46511825,1973.4,1972.1,0.46606939]
[1771201257295,0.46511825,1973.4,1972.5,0.001]
[1771201257997,0.46511825,1973.3,1972.5,0.001]
[1771201258168,0.46511825,1973.3,1972.5,0.46706939]
[1771201258376,1.811,1973.2,1972.5,0.46706939]
[1771201259292,2.27611825,1973.2,1972.5,0.001]
[1771201259802,0.46511825,1973.1,1972.5,0.001]
[1771201259969,1.811,1973.2,1972.5,0.001]
[1771201260175,0.46511825,1973.1,1972.5,0.001]
[1771201261304,1.2670507,1973.1,1972.0,0.00153886]
[1771201261506,0.46511825,1972.7,1972.0,0.00153886]
[1771201261704,1.36311825,1972.6,1972.0,0.00153886]
[1771201261878,0.898,1972.6,1972.0,0.46760825]
[1771201263303,0.898,1972.6,1972.0,0.00153886]
[1771201263510,1.36311825,1972.6,1972.0,0.00153886]
[1771201264203,0.46511825,1972.5,1971.5,0.46606939]
[1771201264582,1.73254886,1972.5,1971.5,0.46606939]
[1771201264907,0.46511825,1972.4,1971.3,0.46606939]
[1771201265888,0.46511825,1972.2,1971.1,0.46606939]
[1771201266083,0.46511825,1972.0,1971.1,0.46606939]
[1771201266293,0.46511825,1972.0,1970.7,0.0887716]
[1771201266294,0.46511825,1971.8,1970.7,0.0887716]
[1771201266497,0.46511825,1971.5,1970.7,0.0887716]
[1771201266701,8.8928894,1971.9,1970.7,0.0887716]
[1771201266702,1.812,1971.4,1970.7,0.0887716]
[1771201266899,0.899,1971.3,1970.7,0.0887716]
[1771201268980,0.46511825,1971.2,1970.7,0.0887716]
[1771201269173,0.46511825,1971.2,1970.0,8.89442826]
[1771201269174,0.46511825,1971.2,1970.0,0.46760825]
[1771201269747,0.899,1971.3,1970.0,0.46760825]
[1771201269748,0.46511825,1971.0,1970.0,0.46760825]
[1771201269877,0.46511825,1971.3,1970.0,0.46760825]
[1771201270208,2.27611825,1971.2,1970.1,0.46606939]
[1771201270714,1.811,1971.2,1970.1,0.46606939]
[1771201270919,1.811,1971.2,1971.0,0.001]
[1771201271508,0.46511825,1971.1,1971.0,0.001]
[1771201271813,1.811,1971.2,1971.0,0.001]
[1771201272729,2.27611825,1971.2,1971.0,0.001]
[1771201273482,0.899,1971.2,1971.0,0.001]
[1771201275204,0.1024,1971.0,1970.0,0.00153886]
[1771201275516,0.4541228,1971.3,1970.1,0.4795895]
[1771201275694,0.5565228,1971.5,1970.4,0.4795895]
[1771201276014,1.821,1971.4,1970.4,0.4795895]
[1771201276212,0.4541228,1971.3,1970.1,0.4795895]
[1771201276594,0.4541228,1971.3,1970.0,0.00153886]
[1771201276595,0.4541228,1971.1,1970.0,0.00153886]
[1771201277305,0.1024,1971.2,1970.0,0.00153886]
[1771201277506,0.4541228,1971.1,1970.0,0.00153886]
[1771201277889,0.4541228,1970.9,1970.0,0.00153886]
[1771201278091,0.4541228,1970.7,1970.0,0.00153886]
[1771201278292,0.4541228,1970.3,1969.1,0.4795895]
[1771201278519,0.908,1970.2,1969.1,0.4795895]
[1771201283239,0.4541228,1970.8,1969.2,0.4795895]
[1771201283399,0.4541228,1970.8,1969.8,0.4795895]
[1771201283741,0.00153886,1971.0,1969.8,0.4795895]
[1771201284632,0.45566166,1971.0,1969.8,0.4795895]
[1771201284995,0.4541228,1970.9,1969.8,0.4795895]
[1771201285207,0.0011,1970.1,1969.5,0.4795895]
[1771201288320,0.0011,1970.1,1969.6,0.4795895]
[1771201288933,0.0011,1970.2,1969.6,0.4795895]
[1771201289443,0.0011,1970.2,1969.5,1.2693466]
[1771201289444,0.91553886,1971.0,1970.0,0.4795895]
[1771201290248,0.00153886,1971.0,1970.2,0.4795895]
[1771201292255,0.00153886,1971.0,1970.0,0.959]
[1771201292447,0.00153886,1971.0,1970.0,1.4385895]
[1771201293255,0.00153886,1971.0,1970.2,0.4795895]
[1771201293958,0.914,1971.6,1970.6,0.4795895]
[1771201294326,1.3681228,1971.8,1970.6,0.4795895]
[1771201294527,0.4541228,1971.7,1970.6,0.4795895]
[1771201294954,0.4541228,1971.7,1970.2,8.8928894]
[1771201294955,0.4541228,1971.7,1970.7,0.4795895]
[1771201295156,0.45566166,1972.0,1970.7,0.4795895]
[1771201295462,1.82,1971.9,1970.9,0.4795895]
[1771201296123,0.45566166,1972.0,1970.9,0.4795895]
[1771201296327,1.36966166,1972.0,1970.9,0.4795895]
[1771201296629,0.00153886,1972.0,1970.9,0.4795895]
[1771201296833,0.00153886,1972.0,1971.2,0.4795895]
[1771201298136,0.00153886,1972.0,1971.5,0.4795895]
[1771201298448,0.00153886,1972.0,1971.4,8.8928894]
[1771201298449,0.00153886,1972.0,1971.2,0.4795895]
[1771201299572,0.0011,1971.8,1971.2,0.4795895]
[1771201300546,0.0011,1971.9,1971.4,9.3724789]
[1771201300746,0.0011,1971.9,1971.4,0.4795895]
[1771201303060,0.0011,1972.1,1971.7,0.4795895]
[1771201303249,0.0011,1972.1,1971.4,0.4795895]
[1771201303630,0.0011,1972.1,1971.4,1.4465895]
[1771201304730,0.0011,1972.1,1971.5,0.48538295]
[1771201309564,0.0011,1972.1,1971.4,0.967]
[1771201309866,0.0011,1972.1,1971.3,9.38981557]
[1771201310235,0.0011,1972.1,1971.3,0.49692617]
[1771201311370,0.4608051,1972.1,1971.2,0.964]
[1771201311665,0.5,1972.0,1971.2,0.964]
[1771201312970,0.5,1972.0,1971.2,1.46092617]
[1771201313333,0.9597051,1972.0,1971.2,0.964]
[1771201313749,0.5,1972.0,1971.2,0.964]
[1771201313970,0.5011,1972.0,1971.3,0.49692617]
[1771201314346,0.9608051,1972.0,1971.2,0.964]
[1771201314971,0.9608051,1972.0,1971.1,0.49692617]
[1771201315160,0.5011,1972.0,1971.1,0.49692617]
[1771201315741,0.1024,1971.6,1970.0,1.41146503]
[1771201315939,0.1024,1971.6,1970.3,8.8928894]
[1771201315940,0.4597051,1971.6,1970.3,8.8928894]
[1771201316172,1.3727051,1971.6,1970.4,0.49692617]
[1771201316377,1.3727051,1971.6,1970.5,0.49692617]
[1771201316578,0.913,1971.6,1970.7,0.49692617]
[1771201319277,1.3727051,1971.6,1970.5,0.49692617]
[1771201322378,0.4597051,1971.5,1970.5,0.49692617]
[1771201323560,0.913,1971.6,1970.6,0.54745652]
[1771201324681,0.4597051,1971.5,1970.6,0.54745652]
[1771201324973,0.4597051,1971.5,1970.5,0.0505501]
[1771201325180,0.4597051,1971.5,1970.5,0.54747627]
[1771201325370,0.4597051,1971.5,1970.5,0.49692617]
[1771201327786,0.913,1971.6,1970.6,0.49692617]
[1771201327991,0.913,1971.6,1970.7,1.47092617]
[1771201328291,1.3557051,1971.7,1970.7,1.47092617]
[1771201328662,1.3557051,1971.7,1970.8,0.49692617]
[1771201329358,0.896,1971.7,1970.8,0.49692617]
[1771201330464,0.4597051,1971.6,1970.7,0.974]
[1771201331663,0.4597051,1971.5,1970.6,0.001]
[1771201332593,1.26801109,1971.6,1970.6,0.001]
[1771201332594,0.4597051,1971.3,1970.6,0.001]
[1771201332761,0.4597051,1971.3,1970.6,5e-07]
[1771201333306,0.4597051,1971.1,1970.6,5e-07]
[1771201333468,0.45387281,1970.9,1970.6,5e-07]
[1771201335794,1.35387281,1970.9,1970.6,5e-07]
[1771201336458,0.45387281,1970.8,1970.6,5e-07]
[1771201337661,0.45387281,1971.1,1970.6,5e-07]
[1771201337866,0.899,1971.0,1970.6,5e-07]
[1771201340474,0.1024,1971.7,1970.6,0.49274063]
[1771201340475,0.897,1971.5,1970.6,0.49274063]
[1771201342203,0.0011,1971.4,1970.6,0.49274063]
[1771201343674,0.0011,1971.4,1970.7,0.49274013]
[1771201346193,0.0011,1971.4,1970.8,0.49274013]
[1771201348384,0.0011,1971.4,1970.9,0.46486255]
[1771201357594,0.0011,1971.4,1970.7,0.46586255]
[1771201357804,0.47387557,1971.4,1970.7,0.001]
[1771201365509,0.47387557,1971.4,1970.8,0.46101418]
[1771201365510,0.0011,1971.4,1970.8,0.46101418]
[1771201369316,0.0011,1971.4,1970.9,0.46201418]
[1771201369522,0.0011,1971.3,1970.9,0.46201418]
[1771201376507,0.47788537,1971.3,1970.9,0.001]
[1771201377908,0.0011,1971.3,1970.9,0.001]
[1771201378117,0.0011,1971.4,1970.9,0.46201418]
[1771201379015,0.0011,1971.4,1971.0,0.02178814]
[1771201380224,0.47788537,1971.4,1970.9,0.001]
[1771201380641,0.47678537,1971.2,1970.9,0.001]
[1771201380798,0.47678537,1971.2,1970.7,0.001]
[1771201381141,0.97678537,1971.3,1970.7,0.001]
[1771201382739,0.97678537,1971.3,1971.0,0.001]
[1771201383112,0.97788537,1971.3,1971.0,0.001]
[1771201383510,0.5011,1971.3,1971.0,0.001]
[1771201383813,0.97788537,1971.3,1971.0,0.001]
[1771201384004,0.47678537,1971.2,1970.7,0.001]
[1771201391601,0.47678537,1971.1,1970.7,0.001]
[1771201392514,0.47678537,1971.1,1970.1,1.41701418]
[1771201393027,0.47678537,1971.1,1970.0,0.00153886]
[1771201393421,0.47678537,1971.1,1970.0,0.47796307]
[1771201395139,0.47678537,1971.1,1970.0,0.00153886]
[1771201396016,0.47678537,1971.1,1970.0,0.47796307]
[1771201396221,0.47678537,1971.1,1970.0,0.00153886]
[1771201397227,0.47678537,1971.1,1970.1,0.001]
[1771201397434,0.47788537,1971.1,1970.1,0.001]
[1771201398044,0.48503244,1970.9,1970.1,0.001]
[1771201398415,0.48503244,1970.6,1970.1,0.001]
[1771201398611,0.48503244,1970.4,1969.8,0.001]
[1771201398807,0.48503244,1970.4,1969.2,0.47642421]
[1771201400044,0.48503244,1970.6,1969.4,0.47642421]
[1771201402532,0.48503244,1970.5,1969.1,0.47642421]
[1771201405027,0.48503244,1970.4,1969.1,0.47642421]
[1771201405765,0.914,1970.4,1969.1,0.47642421]
[1771201405944,0.48503244,1970.3,1969.1,0.47642421]
[1771201411466,0.48503244,1969.4,1968.1,0.47642421]
[1771201411633,0.47642421,1969.1,1968.1,0.47642421]
[1771201411840,0.47642421,1969.1,1969.0,0.001]
[1771201412030,0.48503244,1969.6,1969.0,0.001]
[1771201413198,0.48503244,1969.1,1968.0,0.00153886]
[1771201413338,0.48503244,1968.8,1968.0,0.00153886]
[1771201414652,0.48503244,1968.6,1968.0,0.00153886]
[1771201414840,0.48503244,1968.5,1968.0,0.00153886]
[1771201415042,1.35203244,1968.5,1968.0,0.00153886]
[1771201415745,0.48503244,1968.4,1968.0,0.00153886]
[1771201416774,1.26972007,1969.0,1968.0,0.00153886]
[1771201416955,1.781,1968.9,1968.0,0.00153886]
[1771201417135,0.48503244,1968.8,1968.0,0.00153886]
[1771201419347,8.12597938,1970.1,1968.0,0.00153886]
[1771201419348,0.48503244,1969.3,1968.0,0.47796307]
[1771201419546,2.26703244,1969.2,1968.0,0.47796307]
[1771201419899,0.48503244,1969.1,1968.0,0.47796307]
[1771201422175,0.48503244,1968.9,1968.0,0.47796307]
[1771201422342,0.48503244,1968.9,1968.0,0.00153886]
[1771201424341,0.48503244,1968.9,1968.1,0.46718615]
[1771201424572,0.5,1969.0,1968.1,0.46718615]
[1771201424746,0.95277851,1969.0,1968.1,0.46718615]
[1771201425168,0.45277851,1968.9,1968.0,0.50047614]
[1771201425468,0.5,1969.0,1968.0,0.50047614]
[1771201425867,0.5,1969.0,1968.1,0.001]
[1771201426073,0.5,1969.0,1968.2,0.49893728]
[1771201426370,0.0011,1968.8,1968.2,0.49893728]
[1771201427572,0.0011,1968.8,1968.1,0.001]
[1771201427770,0.45387851,1968.8,1968.1,0.001]
[1771201428954,1.31687851,1968.8,1968.1,0.001]
[1771201429176,0.0011,1968.8,1968.1,0.001]
[1771201429481,0.0011,1968.8,1968.2,0.49893728]
[1771201430371,0.0011,1968.8,1968.1,0.001]
[1771201430782,0.0011,1968.8,1968.1,0.49993728]
[1771201436079,0.0011,1968.8,1968.2,0.49893728]
[1771201437791,0.0011,1968.8,1968.1,0.001]
[1771201438282,0.0011,1968.8,1968.1,0.49993728]
[1771201439985,0.5,1968.7,1968.1,0.49993728]
[1771201440883,0.5,1968.7,1968.2,0.001]
[1771201441201,0.5,1968.7,1968.2,0.49993728]
[1771201441911,0.0011,1968.8,1968.2,0.49993728]
[1771201442607,0.45387851,1968.8,1968.2,0.001]
[1771201443410,0.45387851,1968.8,1968.1,0.001]
[1771201444089,0.45277851,1968.7,1968.1,0.001]
[1771201444984,0.45277851,1968.5,1968.1,0.001]
[1771201445182,0.45277851,1968.5,1967.5,0.49893728]
[1771201448721,0.5,1968.6,1967.6,0.49893728]
[1771201450115,0.5,1968.6,1967.6,1.76951815]
[1771201450287,0.5,1968.6,1967.7,0.49893728]
[1771201451185,0.5,1968.6,1967.8,0.49893728]
[1771201451512,0.0011,1968.8,1968.1,0.49893728]
[1771201452489,0.0011,1968.8,1967.7,11.88216432]
[1771201452490,0.45387851,1968.8,1967.9,0.49893728]
[1771201455633,0.0011,1968.7,1967.9,0.49893728]
[1771201456006,0.0011,1968.7,1968.0,0.4504803]
[1771201459002,0.0011,1968.7,1968.1,0.4504803]
[1771201460338,0.0011,1968.7,1968.3,0.4504803]
[1771201461136,0.0011,1968.7,1968.4,0.4504803]
[1771201461818,0.00153886,1969.0,1968.6,0.4504803]
[1771201462327,0.45739648,1969.0,1968.3,0.939]
[1771201462529,0.00153886,1969.0,1968.4,0.4504803]
[1771201464550,0.915,1969.7,1968.6,0.4504803]
[1771201464551,1.37085762,1969.7,1968.6,0.4504803]
[1771201464837,0.45585762,1969.6,1968.6,0.4504803]
[1771201465436,0.45585762,1969.6,1968.8,0.4504803]
[1771201466917,0.45585762,1969.8,1968.8,0.4504803]
[1771201468337,0.45585762,1969.8,1968.8,1.3914803]
[1771201468642,0.45585762,1969.8,1968.9,0.4504803]
[1771201470129,0.0011,1969.7,1968.9,0.4504803]
[1771201470840,0.0011,1969.7,1968.5,5.99600998]
[1771201470841,0.45585762,1969.6,1968.5,1.857]
[1771201471038,0.45585762,1969.5,1968.5,1.857]
[1771201471238,0.45585762,1969.5,1968.5,2.3074803]
[1771201472029,0.45585762,1969.5,1968.6,0.4504803]
[1771201473949,0.45585762,1969.4,1968.5,0.001]
[1771201475815,0.45585762,1969.3,1968.5,0.001]
[1771201483919,0.45585762,1969.3,1968.6,0.001]
[1771201484154,0.46221335,1969.1,1968.6,0.001]
[1771201489238,0.46221335,1969.1,1968.5,0.001]
[1771201489636,0.1024,1968.4,1967.2,1.09064716]
[1771201489840,0.1024,1968.4,1967.3,0.47470215]
[1771201489841,0.47488963,1968.2,1967.3,0.47470215]
[1771201490038,0.841,1968.3,1967.3,0.52553323]
[1771201492262,0.915,1968.4,1967.4,0.47470215]
[1771201492475,0.915,1968.4,1967.6,0.47470215]
[1771201492631,0.47488963,1968.3,1967.4,0.47470215]
[1771201493135,0.47488963,1968.2,1967.2,1.09064716]
[1771201493864,0.47488963,1968.1,1967.2,1.09064716]
[1771201495932,0.5,1968.0,1967.2,1.09064716]
[1771201496138,0.47488963,1967.9,1967.2,1.09064716]
[1771201498040,0.47488963,1967.9,1967.3,0.001]
[1771201499781,1.339,1968.0,1967.3,0.001]
[1771201500245,1.339,1968.0,1967.3,0.47570215]
[1771201500680,0.5,1968.0,1967.3,0.47570215]
[1771201500960,0.0011,1968.2,1967.5,0.47470215]
[1771201501569,0.0011,1968.5,1967.6,0.47470215]
[1771201501762,0.0011,1968.5,1967.7,0.47470215]
[1771201502163,0.0011,1968.5,1968.0,0.47470215]
[1771201502742,0.0011,1969.2,1968.3,0.47470215]
[1771201503354,0.0011,1969.2,1968.1,0.47470215]
[1771201503355,0.47598963,1969.2,1968.1,0.47470215]
[1771201503558,0.5,1968.9,1967.9,0.47470215]
[1771201503972,0.5,1968.9,1967.5,0.915]
[1771201503973,0.47488963,1968.8,1967.5,0.915]
[1771201504174,0.47488963,1968.8,1967.6,0.47470215]
[1771201504376,0.47488963,1968.7,1967.5,1.848]
[1771201504576,0.47488963,1968.6,1967.3,0.47570215]
[1771201504885,0.47488963,1968.6,1967.3,1.40870215]
[1771201506179,0.47488963,1968.6,1967.4,0.47470215]
[1771201506345,0.47488963,1968.8,1967.4,0.47470215]
[1771201507147,0.47488963,1968.8,1967.5,0.47470215]
[1771201508589,0.47488963,1968.0,1967.3,0.001]
[1771201508879,0.47488963,1968.0,1967.0,0.00153886]
[1771201512771,0.47488963,1967.9,1967.1,0.001]
[1771201514568,8.93093861,1967.8,1967.1,0.001]
[1771201514890,0.46655828,1967.8,1967.0,0.00253886]
[1771201516092,0.836,1967.9,1967.1,0.46144258]
[1771201516280,0.56895828,1968.3,1967.1,0.46144258]
[1771201516659,0.025406,1968.5,1967.6,0.46144258]
[1771201518781,0.025406,1968.5,1967.8,0.46144258]
[1771201520272,0.0011,1968.8,1968.1,0.46144258]
[1771201520984,0.46765828,1968.8,1967.8,0.46144258]
[1771201522986,0.0011,1968.8,1967.9,0.46144258]
[1771201524696,0.46655828,1968.5,1967.0,0.46398144]
[1771201525016,0.46655828,1968.4,1967.0,0.46398144]
[1771201525998,3.01701596,1968.5,1967.0,0.46398144]
[1771201525999,0.46655828,1968.2,1967.0,0.46398144]
[1771201526376,0.5,1968.3,1967.1,0.46144258]
[1771201526983,0.5,1968.3,1967.4,0.46144258]
[1771201527902,1.747,1968.5,1967.4,0.46144258]
[1771201528122,1.747,1968.5,1967.6,0.46144258]
[1771201528787,0.915,1968.5,1967.6,0.46144258]
[1771201530179,0.46655828,1968.4,1967.2,0.46144258]
[1771201530378,0.915,1968.5,1967.5,0.46144258]
[1771201531410,0.915,1968.5,1967.1,14.01552177]
[1771201531411,0.46655828,1968.3,1967.1,0.001]
[1771201531711,0.46655828,1968.2,1967.1,0.001]
[1771201533204,0.46655828,1968.1,1967.1,0.001]
[1771201533406,0.46655828,1968.0,1967.1,0.001]
[1771201541203,0.46655828,1968.0,1967.2,0.001]
[1771201541628,0.915,1968.2,1967.2,0.46244258]
[1771201541797,0.46655828,1968.1,1967.2,0.001]
[1771201543098,0.915,1968.2,1967.2,0.46244258]
[1771201543343,1.38155828,1968.2,1967.2,0.46244258]
[1771201546657,0.5,1968.4,1967.4,0.46277341]
[1771201546954,0.0011,1968.7,1967.7,0.46277341]
[1771201547351,0.49357002,1968.6,1967.5,0.921]
[1771201547937,0.0011,1968.7,1967.6,0.46277341]
[1771201548723,0.5,1968.6,1967.6,0.46277341]
[1771201548928,0.0011,1968.7,1967.6,0.46277341]
[1771201550354,0.0011,1968.7,1967.6,1.73334715]
[1771201550520,0.0011,1968.7,1967.7,0.46277341]
[1771201550717,0.49357002,1968.3,1967.2,0.001]
[1771201550933,0.49357002,1968.2,1967.2,0.001]
[1771201552953,1.32257002,1968.1,1967.2,0.001]
[1771201553765,0.49357002,1968.0,1967.2,0.001]
[1771201560754,0.0011,1968.4,1967.6,0.46277341]
[1771201560933,0.49467002,1968.4,1967.3,0.46277341]
[1771201561950,0.0011,1968.4,1967.3,0.46277341]
[1771201562156,0.49467002,1968.4,1967.3,0.46277341]
[1771201563466,0.49467002,1968.4,1967.2,0.001]
[1771201563639,0.49467002,1968.4,1967.2,0.46377341]
[1771201564352,0.49467002,1968.4,1967.2,0.001]
[1771201564555,0.49357002,1968.3,1967.2,0.001]
[1771201568370,0.49357002,1968.1,1967.2,0.001]
[1771201568939,0.49357002,1968.1,1967.3,0.001]
[1771201583559,0.49357002,1968.1,1967.3,0.48010662]
[1771201585664,1.32157002,1968.1,1967.3,0.48010662]
[1771201587404,0.0011,1968.4,1967.5,0.47910662]
[1771201588461,0.0011,1968.4,1967.5,0.52983424]
[1771201589292,0.0011,1968.4,1967.7,0.47910662]
[1771201594982,0.0011,1968.4,1967.8,0.47910662]
[1771201596081,0.0011,1968.4,1967.9,0.47910662]
[1771201596529,0.0011,1968.5,1967.9,0.47910662]
[1771201597532,0.0011,1968.7,1967.8,10.95361703]
[1771201597533,0.0011,1968.7,1968.1,0.47910662]
[1771201597698,0.0011,1968.9,1968.2,0.47910662]
[1771201598031,0.0011,1968.9,1968.3,0.47910662]
[1771201605390,0.0011,1968.9,1967.8,9.6831821]
[1771201605730,0.47322678,1968.9,1968.1,0.49620978]
[1771201608198,0.0011,1968.8,1968.1,0.49620978]
[1771201608412,0.47322678,1968.8,1968.1,0.49620978]
[1771201609127,0.0011,1968.8,1968.1,0.49620978]
[1771201609602,0.47322678,1968.8,1968.0,0.001]
[1771201610720,0.47322678,1968.8,1968.0,0.49720978]
[1771201613033,0.47322678,1968.8,1968.0,0.001]
[1771201614704,0.47322678,1968.8,1968.0,0.49720978]
[1771201617541,0.47322678,1968.8,1968.0,0.001]
[1771201617944,0.47322678,1968.8,1968.0,0.49720978]
[1771201620242,0.47322678,1968.8,1968.1,0.001]
[1771201620414,0.0011,1968.7,1968.1,0.001]
[1771201621119,0.0011,1968.7,1968.1,0.49720978]
[1771201621548,0.47322678,1968.7,1968.1,0.001]
[1771201621943,0.0011,1968.7,1968.1,0.49720978]
[1771201622246,0.0011,1968.7,1968.1,0.001]
[1771201622247,0.47322678,1968.7,1968.1,0.001]
[1771201623020,0.0011,1968.7,1968.4,7.75248789]
[1771201623227,0.0011,1968.8,1968.6,7.75248789]
[1771201623426,0.46607849,1969.3,1968.6,7.75248789]
[1771201624046,0.46607849,1969.3,1968.5,0.49620978]
[1771201624047,0.46607849,1969.3,1968.5,8.24478834]
[1771201625819,0.46607849,1969.3,1968.6,0.49620978]
[1771201633147,0.9161,1969.7,1968.6,0.49620978]
[1771201633148,0.47212678,1969.6,1968.6,0.49620978]
[1771201633576,0.0011,1969.7,1968.9,0.45246087]
[1771201634177,0.0011,1969.2,1968.9,0.45246087]
[1771201634355,0.0011,1969.7,1968.8,0.45246087]
[1771201634555,0.0011,1969.3,1968.8,0.45246087]
[1771201634759,0.0011,1969.7,1968.8,0.45246087]
[1771201635260,0.0011,1969.5,1968.8,0.45246087]
[1771201635591,0.0011,1969.5,1968.8,1.35446087]
[1771201636492,0.0011,1969.5,1968.9,0.45246087]
[1771201641065,0.0011,1969.5,1968.9,1.72220028]
[1771201641258,0.0011,1969.5,1969.0,0.45246087]
[1771201641882,0.0011,1969.5,1969.0,0.43966087]
[1771201643206,0.0011,1969.5,1969.0,1.7093322]
[1771201643506,0.0011,1969.7,1969.0,0.45246087]
[1771201645927,0.0011,1969.7,1969.4,7.74194715]
[1771201647525,0.0011,1969.6,1969.4,7.74194715]
[1771201648226,0.0011,1969.7,1969.4,7.74194715]
[1771201649521,0.0011,1969.8,1969.4,7.74194715]
[1771201649733,0.0011,1969.9,1969.6,7.74194715]
[1771201650111,0.00153886,1970.0,1969.8,7.74194715]
[1771201652538,0.46933566,1970.4,1970.0,7.74194715]
[1771201652831,0.0011,1970.5,1970.0,7.74194715]
[1771201653246,0.0011,1970.5,1969.9,1.36746087]
[1771201653247,0.47043566,1970.5,1969.9,0.915]
[1771201653410,0.47043566,1970.5,1969.8,0.916]
[1771201654236,0.47043566,1970.5,1969.6,8.65794715]
[1771201654442,0.47043566,1970.5,1969.6,0.916]
[1771201655637,0.47043566,1970.5,1969.7,7.74194715]
[1771201657745,0.47043566,1970.5,1969.6,0.916]